bitfinex/quotes_ETHUSD_20240902
["timestamp","ask_amount","ask_price","bid_price","bid_amount"]
[1725316697358,3.0,2549.4,2549.0,5.66126068]
[1725316697653,3.0,2549.4,2549.0,6.54124575]
[1725316698622,3.0,2549.4,2549.0,5.66126068]
[1725316698824,3.0,2549.4,2549.1,3.13825]
[1725316699058,3.0,2549.5,2549.2,0.18092846]
[1725316699828,5.2614,2549.5,2549.2,0.18092846]
[1725316700028,6.23972737,2549.5,2549.2,0.18092846]
[1725316700230,5.2614,2549.5,2549.2,0.18092846]
[1725316700431,3.0,2549.5,2549.2,3.31914846]
[1725316700664,3.0,2549.6,2549.2,3.31914846]
[1725316700859,3.0,2549.6,2549.2,5.73714846]
[1725316703658,3.0,2549.6,2549.2,3.31914846]
[1725316703969,6.13776,2549.6,2549.2,3.31914846]
[1725316704377,6.13776,2549.6,2549.2,0.18092846]
[1725316704527,7.52623687,2549.6,2549.2,0.18092846]
[1725316705778,3.13811,2549.3,2549.2,0.18092846]
[1725316706064,3.13811,2549.3,2548.9,7.28]
[1725316706266,3.13811,2549.3,2549.2,0.18082417]
[1725316706426,3.13811,2549.3,2548.9,7.28]
[1725316706634,3.13811,2549.3,2549.0,0.18109332]
[1725316706830,1.01271937,2549.3,2549.0,0.18109332]
[1725316707055,2.467,2549.4,2549.0,0.18109332]
[1725316707223,5.467,2549.4,2549.0,0.18109332]
[1725316708129,8.60501,2549.4,2549.0,0.18109332]
[1725316709559,3.13825,2549.2,2549.0,0.18109332]
[1725316710737,4.52248371,2549.1,2549.0,0.18109332]
[1725316711089,3.90443337,2549.1,2549.0,0.18109332]
[1725316711381,6.19363337,2549.1,2549.0,0.18109332]
[1725316711537,7.57775708,2549.1,2549.0,0.18109332]
[1725316711739,10.57775708,2549.1,2548.5,3.13903]
[1725316712039,10.57775708,2549.1,2548.6,0.18167345]
[1725316712040,7.57775708,2549.1,2548.6,0.18167345]
[1725316712277,7.57775708,2549.1,2548.6,3.32064345]
[1725316716510,7.57775708,2549.1,2548.6,0.18167345]
[1725316716511,4.21017071,2549.0,2548.6,0.18167345]
[1725316716808,4.21017071,2549.0,2548.4,3.13913]
[1725316716809,7.34877071,2549.0,2548.4,3.13913]
[1725316717015,7.34872071,2549.0,2548.5,0.18210793]
[1725316717506,3.13862,2548.9,2548.5,0.18210793]
[1725316719490,2.2955,2548.8,2548.5,0.18210793]
[1725316730444,3.13862,2548.9,2548.5,0.18210793]
[1725316730953,2.3042,2549.0,2548.5,4.21603572]
[1725316731243,5.3042,2549.0,2548.6,3.13895]
[1725316731406,5.3042,2549.0,2548.7,0.18203165]
[1725316732002,8.4427,2549.0,2548.7,0.18203165]
[1725316732231,9.73921537,2549.0,2548.7,0.18203165]
[1725316732447,9.73921537,2549.0,2548.5,3.13909]
[1725316732611,6.73921537,2549.0,2548.6,0.18213237]
[1725316733269,9.87776537,2549.0,2548.6,0.18213237]
[1725316733437,6.73921537,2549.0,2548.6,0.18213237]
[1725316734642,3.81261154,2548.9,2548.4,3.13913]
[1725316734841,3.81261154,2548.9,2548.5,0.18224353]
[1725316735229,3.13869,2548.9,2548.5,0.18224353]
[1725316735435,11.54928,2549.2,2548.7,3.13878]
[1725316735614,3.0,2549.1,2548.8,0.18189443]
[1725316735815,6.13845,2549.1,2548.8,0.18189443]
[1725316736036,6.13845,2549.1,2548.6,5.39971]
[1725316736308,6.13845,2549.1,2548.7,0.18201079]
[1725316739673,3.13848,2549.0,2548.7,0.18201079]
[1725316747346,4.4089128,2549.0,2548.7,0.18201079]
[1725316748938,3.13863,2548.9,2548.7,0.18201079]
[1725316749357,3.13863,2548.9,2548.4,5.61053]
[1725316749558,3.13863,2548.9,2548.8,0.18181617]
[1725316749753,3.13863,2548.9,2548.4,5.61053]
[1725316750260,3.13863,2548.9,2548.5,0.18216527]
[1725316750969,2.3372,2548.8,2548.5,0.18216527]
[1725316751376,2.33592524,2548.8,2548.5,0.18216527]
[1725316751530,3.13873,2548.8,2548.5,0.18216527]
[1725316752144,3.1386,2548.9,2548.5,0.18216527]
[1725316752574,3.1386,2548.9,2548.5,2.54646527]
[1725316756359,3.1386,2548.9,2548.5,0.18216527]
[1725316756360,3.13879,2548.8,2548.5,0.18216527]
[1725316756705,3.13879,2548.8,2548.3,12.85433]
[1725316756907,3.13879,2548.8,2548.6,0.18209497]
[1725316757045,3.13879,2548.8,2548.3,12.85433]
[1725316757248,3.13879,2548.8,2548.4,0.18232773]
[1725316759702,3.1386,2548.9,2548.4,0.18232773]
[1725316759865,6.27732,2548.9,2548.4,0.18232773]
[1725316760209,3.1386,2548.9,2548.4,0.18232773]
[1725316760365,3.1386,2548.9,2548.4,3.32153773]
[1725316760564,3.1386,2548.9,2548.4,5.2214666]
[1725316761981,6.27727,2548.9,2548.4,5.2214666]
[1725316762968,3.1386,2548.9,2548.4,5.2214666]
[1725316764971,6.27727,2548.9,2548.4,5.2214666]
[1725316765301,3.1386,2548.9,2548.4,5.2214666]
[1725316765894,3.1386,2548.9,2548.5,2.4072]
[1725316766310,3.0,2549.1,2548.7,2.4072]
[1725316766513,3.0,2549.1,2548.7,5.54594]
[1725316766806,3.0,2549.3,2549.0,5.54568]
[1725316767011,3.0,2549.3,2549.2,3.13823]
[1725316767216,3.0,2549.3,2549.1,0.554568]
[1725316767217,3.0,2549.3,2549.1,3.87442209]
[1725316767417,3.0,2549.3,2549.2,5.72684777]
[1725316767999,3.13751,2549.8,2549.2,5.72684777]
[1725316768216,1.38412371,2549.7,2549.2,2.58861777]
[1725316768414,4.52200371,2549.5,2549.2,0.18141777]
[1725316768572,1.38412371,2549.5,2549.2,0.18141777]
[1725316768765,1.38412371,2549.5,2549.0,5.54566]
[1725316768971,1.38412371,2549.5,2549.3,0.18117629]
[1725316769279,2.48398835,2549.5,2549.4,0.18092442]
[1725316769480,1.38412371,2549.5,2549.0,5.54566]
[1725316769687,1.38412371,2549.5,2549.1,0.18127336]
[1725316771867,4.52203371,2549.5,2549.1,0.18127336]
[1725316772068,2.48399535,2549.5,2549.1,0.18127336]
[1725316772275,3.13802,2549.4,2548.8,5.44859]
[1725316772469,3.13802,2549.4,2548.9,0.18156859]
[1725316772912,8.62396,2549.6,2549.0,3.13847]
[1725316773079,10.00808371,2549.6,2549.0,3.13847]
[1725316773272,10.00808371,2549.6,2549.1,0.18133592]
[1725316773472,3.13787,2549.5,2549.1,0.18133592]
[1725316774701,3.13787,2549.5,2549.1,2.49123592]
[1725316780033,1.38412371,2549.2,2549.1,0.18133592]
[1725316780311,3.13847,2549.1,2548.5,2.2522]
[1725316780690,3.13847,2549.1,2548.6,3.13894]
[1725316781588,3.0,2549.4,2548.7,5.56343984]
[1725316781800,3.0,2549.4,2548.9,3.13859]
[1725316782147,3.13833,2549.2,2548.8,2.3788]
[1725316782276,6.27663,2549.2,2548.8,2.3788]
[1725316782482,4.43794537,2549.2,2548.6,2.3749]
[1725316782704,3.13855,2549.0,2548.6,2.3749]
[1725316783896,3.13828,2549.2,2548.7,3.13878]
[1725316784095,3.13828,2549.2,2548.7,3.37627]
[1725316784421,3.0,2549.1,2548.7,3.37627]
[1725316786921,3.0,2549.1,2548.8,0.18163279]
[1725316788111,3.13854,2549.0,2548.8,0.18163279]
[1725316788301,9.27685,2549.1,2548.8,0.18163279]
[1725316788622,6.13842,2549.1,2548.6,2.3749]
[1725316788788,6.13842,2549.1,2548.9,0.18151123]
[1725316788987,9.27685,2549.1,2548.6,2.3749]
[1725316789189,6.13842,2549.1,2549.0,0.18136881]
[1725316789423,7.20451737,2549.1,2548.6,2.3749]
[1725316789627,11.56647,2549.1,2549.0,0.18153045]
[1725316789827,3.13867,2548.9,2548.6,2.3749]
[1725316789994,3.13867,2548.9,2548.5,2.3138]
[1725316790939,3.1386,2549.0,2548.5,2.3138]
[1725316791107,3.1386,2549.0,2548.5,5.45289]
[1725316792035,3.1386,2549.0,2548.5,8.59198]
[1725316792208,3.1386,2549.0,2548.5,9.4825707]
[1725316792530,3.0,2549.1,2548.7,3.13883]
[1725316792833,3.0,2549.1,2548.5,8.59187]
[1725316793033,3.0,2549.1,2548.5,6.3433597]
[1725316793194,5.50488,2549.0,2548.5,8.59181]
[1725316793532,5.50488,2549.0,2548.5,5.45278]
[1725316793707,5.50488,2549.0,2548.5,8.59181]
[1725316794130,5.50488,2549.0,2548.5,5.45278]
[1725316795396,3.13861,2548.9,2548.3,8.7625]
[1725316795856,3.13861,2548.9,2548.4,3.13921]
[1725316796038,3.13873,2548.8,2548.3,2.484]
[1725316796207,3.13873,2548.8,2548.3,3.13932]
[1725316796936,6.27752,2548.8,2548.3,3.13932]
[1725316797142,3.13873,2548.8,2548.3,3.13932]
[1725316797342,3.0,2549.1,2548.4,3.13915]
[1725316797343,6.13842,2549.1,2548.4,3.13915]
[1725316797643,3.13842,2549.1,2548.5,2.2802]
[1725316797803,3.0,2549.0,2548.6,3.13891]
[1725316798239,6.13848,2549.0,2548.6,3.13891]
[1725316798402,3.59640462,2549.6,2548.6,3.13891]
[1725316798403,2.3894,2549.5,2548.7,2.2802]
[1725316798603,2.3894,2549.5,2548.8,3.13867]
[1725316798798,1.38412371,2549.6,2549.1,3.13835]
[1725316798799,3.13778,2549.6,2549.1,3.13835]
[1725316799113,0.86648,2549.6,2549.0,3.13838]
[1725316799441,3.13787,2549.5,2549.0,3.13838]
[1725316800146,3.0,2549.4,2549.0,3.13838]
[1725316800897,3.0,2549.4,2549.0,6.27679]
[1725316801148,3.0,2549.4,2549.1,3.13835]
[1725316801446,6.13781,2549.6,2549.2,2.2802]
[1725316802149,6.13781,2549.6,2549.3,0.18100419]
[1725316802526,6.13781,2549.6,2549.2,2.2802]
[1725316802850,3.13787,2549.5,2549.4,0.18088789]
[1725316803017,6.13787,2549.5,2549.3,0.18100419]
[1725316803221,6.13787,2549.5,2549.4,0.18088789]
[1725316803519,6.13787,2549.5,2549.0,2.2802]
[1725316803719,3.0,2549.4,2549.1,0.18123683]
[1725316803937,6.05878811,2549.9,2549.3,2.2802]
[1725316804272,3.13763,2549.7,2549.4,0.18088789]
[1725316805724,4.52175371,2549.7,2549.4,0.18088789]
[1725316806443,0.53193811,2549.9,2549.4,0.74081968]
[1725316806620,3.13739,2549.9,2549.4,3.87874968]
[1725316806818,3.0,2549.8,2549.4,3.87874968]
[1725316807020,4.52199371,2549.5,2549.4,0.18088789]
[1725316807245,3.13787,2549.5,2549.4,0.18088789]
[1725316807455,3.13787,2549.5,2548.8,7.28]
[1725316807456,3.13824,2549.2,2548.8,9.5943]
[1725316807622,1.38412371,2549.1,2548.6,2.3143]
[1725316807827,8.71547,2549.2,2548.6,5.45319]
[1725316808169,2.4389,2549.2,2548.7,3.13884]
[1725316808617,8.57715,2549.2,2548.7,3.13884]
[1725316808822,3.0,2549.2,2548.7,3.997981]
[1725316809045,3.0,2549.2,2549.0,2.4821]
[1725316809253,3.0,2549.4,2549.0,2.4821]
[1725316809459,3.0,2549.4,2549.1,3.13829]
[1725316809665,1.38412371,2549.6,2549.1,3.13829]
[1725316809666,3.0,2549.6,2549.1,3.13829]
[1725316810376,3.0,2549.6,2549.1,6.27658]
[1725316810661,3.0,2549.6,2549.1,3.13827]
[1725316811257,4.38412371,2549.6,2549.1,3.13827]
[1725316812034,7.52188371,2549.6,2549.1,3.13827]
[1725316812635,7.52188371,2549.6,2548.9,3.13853]
[1725316812636,2.2815,2549.5,2548.9,3.13853]
[1725316812947,5.2815,2549.5,2548.9,3.13853]
[1725316813134,11.55739,2549.5,2548.9,3.13853]
[1725316813541,8.41944,2549.5,2548.9,3.13853]
[1725316813738,6.13794,2549.5,2549.0,5.52228]
[1725316813957,3.0,2549.5,2549.1,4.004431]
[1725316814623,3.0,2549.6,2549.3,2.3838]
[1725316817088,3.0,2549.6,2549.4,0.18067932]
[1725316818629,4.38412371,2549.6,2549.4,0.18067932]
[1725316818881,3.0,2549.6,2549.4,0.18067932]
[1725316819058,0.51262462,2549.7,2549.3,5.51201]
[1725316819235,3.65024462,2549.7,2549.5,0.18056303]
[1725316819436,3.0,2549.6,2549.4,0.18067932]
[1725316819675,3.0,2549.6,2549.3,2.3739]
[1725316823785,0.51262462,2549.7,2549.3,3.238937]
[1725316823939,8.62774,2550.3,2549.8,3.13747]
[1725316824286,8.62774,2550.3,2549.7,2.4887]
[1725316824287,3.13702,2550.2,2549.7,5.62631]
[1725316825038,4.52114371,2550.2,2549.7,5.62631]
[1725316825349,4.52114371,2550.2,2549.7,2.4887]
[1725316825986,4.52114371,2550.2,2549.7,5.62629]
[1725316826253,3.0,2550.1,2549.7,5.62629]
[1725316826783,3.0,2550.1,2549.7,6.502684]
[1725316827806,3.0,2550.1,2549.7,3.365094]
[1725316828005,6.13713,2550.1,2549.6,3.13765]
[1725316828299,6.64975462,2550.1,2549.6,3.13765]
[1725316828510,3.13725,2550.0,2549.5,5.70499827]
[1725316828712,3.13725,2550.0,2549.5,5.62656]
[1725316828884,3.51262462,2550.1,2549.6,3.13773]
[1725316829207,6.64976462,2550.1,2549.6,3.13773]
[1725316832195,6.64976462,2550.1,2549.7,0.22021283]
[1725316832396,2.4289,2549.9,2549.7,0.22021283]
[1725316833016,2.4289,2549.9,2549.8,0.22009498]
[1725316833419,2.4289,2549.9,2549.5,1.604447]
[1725316833615,2.4289,2549.9,2549.8,0.22009498]
[1725316833826,3.51262462,2550.1,2549.6,5.56481]
[1725316834118,3.0,2550.1,2549.8,0.22010019]
[1725316834324,3.0,2550.1,2549.7,0.22021804]
[1725316834502,6.13713,2550.1,2549.9,0.21998235]
[1725316834704,6.13713,2550.1,2549.8,0.22010019]
[1725316834900,6.13713,2550.1,2550.0,0.21986452]
[1725316835106,6.13713,2550.1,2549.9,0.21998235]
[1725316835517,6.13713,2550.1,2549.6,5.56477]
[1725316835693,6.13713,2550.1,2550.0,0.21986452]
[1725316835891,6.13713,2550.1,2549.6,6.44288084]
[1725316835892,6.13713,2550.1,2549.6,5.56477]
[1725316836529,6.13713,2550.1,2549.7,0.22021804]
[1725316836895,4.52139371,2550.0,2549.7,0.22021804]
[1725316837148,4.52162371,2549.8,2549.7,0.22021804]
[1725316837291,4.52162371,2549.8,2549.3,7.28]
[1725316837496,4.52162371,2549.8,2549.7,0.22018677]
[1725316837720,4.52162371,2549.8,2549.3,7.28]
[1725316837900,4.52162371,2549.8,2549.7,0.22022325]
[1725316838105,5.65125048,2549.8,2549.7,0.22022325]
[1725316838302,5.65125048,2549.8,2549.3,7.28]
[1725316838530,5.65125048,2549.8,2549.7,0.22029622]
[1725316838736,5.65125048,2549.8,2549.3,7.28]
[1725316838737,4.26712677,2549.8,2549.3,7.28]
[1725316838910,8.64735,2549.9,2549.7,0.22030144]
[1725316839111,3.13751,2549.8,2549.3,10.41802]
[1725316839306,3.13751,2549.8,2549.3,12.009454]
[1725316839533,1.38412371,2550.0,2549.3,8.871434]
[1725316839838,5.3892,2550.1,2549.5,3.13777]
[1725316840141,5.3892,2550.1,2549.6,3.13764]
[1725316840142,11.66362,2550.1,2549.6,3.13764]
[1725316840296,11.66361,2550.1,2549.6,3.13764]
[1725316840638,8.5264,2550.1,2549.6,3.13764]
[1725316841445,8.5264,2550.1,2549.5,6.27556]
[1725316841594,8.5264,2550.1,2549.5,7.881016]
[1725316842657,8.5264,2550.1,2549.6,3.13771]
[1725316844746,3.0,2550.1,2549.7,5.5283]
[1725316845032,4.38412371,2550.2,2549.8,0.55283]
[1725316845338,4.38412371,2550.2,2549.7,5.5283]
[1725316845339,7.52118371,2550.2,2549.7,5.5283]
[1725316847099,7.52118371,2550.2,2549.8,0.22013668]
[1725316847411,2.4146,2550.0,2549.8,0.22013668]
[1725316847615,5.4146,2550.0,2549.8,0.22013668]
[1725316847816,5.4146,2550.0,2549.6,3.13771]
[1725316848017,5.4146,2550.0,2549.9,0.21999799]
[1725316848234,5.4146,2550.0,2549.6,3.13771]
[1725316848427,5.4146,2550.0,2549.9,0.21999799]
[1725316848608,5.4146,2550.0,2549.6,3.13771]
[1725316848801,2.4146,2550.0,2549.7,0.22024411]
[1725316849764,2.4146,2550.0,2549.6,3.13771]
[1725316849938,2.4146,2550.0,2549.8,0.22013147]
[1725316850145,2.4146,2550.0,2549.7,0.22024932]
[1725316850441,2.4146,2550.0,2549.8,0.22013147]
[1725316850902,2.4146,2550.0,2549.6,3.13771]
[1725316851103,2.4146,2550.0,2549.9,0.22001363]
[1725316851316,2.4146,2550.0,2549.6,3.13771]
[1725316851544,2.4146,2550.0,2549.9,0.22001363]
[1725316852057,2.4146,2550.0,2549.6,3.13771]
[1725316852204,2.4146,2550.0,2549.9,0.22001363]
[1725316852411,3.72189237,2550.0,2549.6,3.13771]
[1725316852604,3.72189237,2550.0,2549.7,0.22024932]
[1725316852605,5.55187,2550.0,2549.7,0.22024932]
[1725316852910,3.13755,2549.8,2549.3,12.84662]
[1725316855649,2.4167,2549.7,2549.3,10.41802]
[1725316855950,2.4167,2549.7,2549.3,3.13802]
[1725316856512,2.4167,2549.7,2549.3,6.27607]
[1725316856844,2.4167,2549.7,2549.3,3.13802]
[1725316862017,2.4167,2549.7,2549.4,0.22069675]
[1725316868559,8.69204,2549.7,2549.4,0.22069675]
[1725316868756,6.56193637,2549.7,2549.2,3.13818]
[1725316868983,5.55432,2549.7,2549.3,0.22092931]
[1725316869141,5.55432,2549.7,2549.2,3.13818]
[1725316869348,5.55432,2549.7,2549.3,0.22092931]
[1725316869546,2.3296,2549.9,2549.5,3.13774]
[1725316869778,6.13724,2550.1,2549.6,3.35827174]
[1725316869779,5.3296,2550.1,2549.6,3.35827174]
[1725316869946,8.46673,2550.1,2549.6,3.35827174]
[1725316870145,5.46673,2550.1,2549.6,4.25954361]
[1725316870378,3.0,2550.0,2549.6,4.25954361]
[1725316871650,3.0,2550.0,2549.6,7.39721361]
[1725316872143,3.0,2550.0,2549.7,3.13761]
[1725316872371,4.52109371,2550.3,2549.8,3.29713023]
[1725316872372,3.0,2550.2,2549.8,3.29713023]
[1725316872576,3.0,2550.2,2549.8,5.69484487]
[1725316872778,4.38412371,2550.3,2549.8,5.69484487]
[1725316873493,4.38412371,2550.3,2549.9,3.13736]
[1725316873793,4.38412371,2550.3,2550.0,0.21977591]
[1725316875073,3.0,2550.2,2550.0,0.21977591]
[1725316875240,4.38412371,2550.3,2550.0,0.21977591]
[1725316879110,3.79222371,2550.1,2550.0,0.21977591]
[1725316879467,6.79222371,2550.1,2549.6,5.52535]
[1725316879670,6.92936371,2550.1,2550.0,0.21970816]
[1725316879874,9.92936371,2550.1,2549.6,8.66303]
[1725316880100,6.92936371,2550.1,2550.0,0.21971858]
[1725316880303,9.92936371,2550.1,2549.7,3.13761]
[1725316880497,9.92936371,2550.1,2550.0,0.21971858]
[1725316880705,5.52945922,2550.1,2549.7,3.13761]
[1725316880916,2.4081,2550.1,2550.0,0.21971858]
[1725316881224,3.0,2550.1,2550.0,0.21973422]
[1725316881517,3.0,2550.1,2549.7,3.13761]
[1725316881673,3.0,2550.1,2550.0,0.21973422]
[1725316881873,3.0,2550.1,2549.7,3.13761]
[1725316882073,3.0,2550.1,2550.0,0.21973422]
[1725316882297,3.0,2550.1,2549.7,3.13761]
[1725316882519,3.0,2550.1,2550.0,0.21973422]
[1725316882718,3.0,2550.1,2549.7,3.13761]
[1725316882923,3.0,2550.1,2550.0,0.21973422]
[1725316883212,4.31286137,2550.1,2550.0,0.21973422]
[1725316883420,4.31286137,2550.1,2549.7,3.13761]
[1725316883622,3.0,2550.1,2550.0,0.21973422]
[1725316883779,3.0,2550.1,2549.7,3.13761]
[1725316884098,3.0,2550.1,2549.8,0.21996989]
[1725316891891,3.13713,2550.1,2549.8,0.21996989]
[1725316892130,3.13701,2550.2,2549.8,0.21996989]
[1725316896259,3.13715,2550.1,2549.8,0.21996989]
[1725316897950,3.13715,2550.1,2549.6,3.13771]
[1725316898151,3.13715,2550.1,2549.9,0.21978953]
[1725316898359,3.13715,2550.1,2549.6,3.13771]
[1725316898602,3.13715,2550.1,2550.0,0.2196717]
[1725316898856,3.13715,2550.1,2549.4,10.41793]
[1725316898857,3.13744,2549.9,2549.4,10.41793]
[1725316899417,3.13725,2550.0,2549.4,10.41793]
[1725316899616,6.2746,2550.0,2549.5,3.13786]
[1725316901761,6.27458,2550.0,2549.5,3.13786]
[1725316901934,3.1374,2549.9,2549.5,3.13786]
[1725316903978,3.1374,2549.9,2549.5,4.733528]
[1725316904464,6.94485371,2550.1,2549.5,4.733448]
[1725316904763,10.08209371,2550.1,2549.5,7.871248]
[1725316904923,10.08209371,2550.1,2549.5,4.733448]
[1725316905118,10.08209371,2550.1,2549.5,7.871248]
[1725316905359,10.08204371,2550.1,2549.5,4.733448]
[1725316905556,3.13729,2550.0,2549.5,4.733448]
[1725316906365,3.13729,2550.0,2549.5,7.871248]
[1725316906966,6.94485371,2550.1,2549.5,7.871248]
[1725316906967,10.08205371,2550.1,2549.5,7.871238]
[1725316907131,10.08205371,2550.1,2549.6,0.22022646]
[1725316909170,3.13731,2550.0,2549.6,0.22022646]
[1725316913546,9.93576371,2549.7,2549.6,0.22022646]
[1725316913764,3.1375,2549.8,2549.6,0.22022646]
[1725316913950,8.51062,2549.9,2549.4,5.63777]
[1725316914153,3.1375,2549.8,2549.7,0.22021803]
[1725316914361,3.1375,2549.8,2549.4,2.4998]
[1725316914362,6.1375,2549.8,2549.4,2.4998]
[1725316914679,3.1375,2549.8,2549.4,2.4998]
[1725316914889,3.1375,2549.8,2549.5,0.22045376]
[1725316916197,4.52162371,2549.8,2549.3,3.13811]
[1725316916794,4.52162371,2549.8,2549.4,0.22062898]
[1725316917096,5.94132618,2549.8,2549.4,0.22062898]
[1725316917495,3.13769,2549.7,2549.4,0.22062898]
[1725316917852,3.13769,2549.7,2549.2,5.63794]
[1725316918058,3.13769,2549.7,2549.3,0.22074686]
[1725316918314,3.13769,2549.7,2549.2,5.63794]
[1725316918592,3.13787,2549.5,2549.4,0.22062898]
[1725316918752,3.13787,2549.5,2549.3,0.22074686]
[1725316918951,7.72063162,2549.7,2549.4,0.22062898]
[1725316919296,3.31307553,2549.6,2549.1,3.13834]
[1725316919459,3.31307553,2549.6,2549.5,0.2205111]
[1725316919460,6.45081553,2549.6,2549.5,0.2205111]
[1725316919661,6.45081553,2549.6,2549.1,3.13834]
[1725316919862,5.54034,2549.6,2549.2,0.22086476]
[1725316924904,3.0,2549.9,2549.3,2.51305038]
[1725316925101,2.4026,2550.0,2549.7,5.57215]
[1725316925102,3.0,2550.0,2549.7,5.57215]
[1725316925304,8.67648,2550.3,2549.7,5.57215]
[1725316925524,3.13702,2550.2,2549.8,0.22039731]
[1725316926003,3.13701,2550.2,2549.8,0.22039731]
[1725316928525,4.52113371,2550.2,2549.8,0.22039731]
[1725316928841,3.13692,2550.3,2549.8,0.22039731]
[1725316929145,3.0,2550.2,2549.8,0.22039731]
[1725316930352,3.0,2550.2,2549.9,5.42049]
[1725316930657,6.16579166,2550.5,2550.0,0.2199323]
[1725316930830,9.30252166,2550.5,2550.0,0.2199323]
[1725316931435,6.16579166,2550.5,2550.0,0.2199323]
[1725316931641,3.0,2550.4,2550.0,0.2199323]
[1725316932553,3.0,2550.4,2550.0,1.1870253]
[1725316932756,3.0,2550.4,2550.1,3.13706]
[1725316932916,3.0,2550.6,2550.1,3.13706]
[1725316933116,3.0,2550.6,2550.2,0.21969666]
[1725316933312,3.0,2550.6,2550.3,2.2775]
[1725316933725,3.0,2550.6,2550.4,0.21931516]
[1725316935442,7.52064371,2550.6,2550.4,0.21931516]
[1725316935619,8.9224548,2550.6,2550.1,2.3368]
[1725316935827,7.52064371,2550.6,2550.2,0.21917032]
[1725316937030,4.38412371,2550.6,2550.2,0.21917032]
[1725316937364,1.38412371,2550.6,2550.2,0.21917032]
[1725316938744,4.52064371,2550.6,2550.2,0.21917032]
[1725316938948,3.0,2550.5,2550.2,0.21917032]
[1725316943182,3.0,2550.5,2550.2,5.76090032]
[1725316943492,3.75042371,2550.8,2550.3,3.1368]
[1725316943730,4.00228837,2550.7,2550.3,3.1368]
[1725316943974,4.00228837,2550.7,2550.4,0.21891909]
[1725316946394,4.00228837,2550.7,2550.4,3.15566909]
[1725316946543,1.38412371,2551.1,2550.6,3.13651]
[1725316946743,1.38412371,2551.3,2550.9,3.13607]
[1725316947059,3.13548,2551.5,2551.1,5.57569]
[1725316947060,1.38412371,2551.5,2551.1,5.57569]
[1725316947252,4.51937371,2551.7,2551.2,3.34695013]
[1725316947783,4.51936371,2551.7,2551.2,0.21118013]
[1725316947988,0.45193737,2551.6,2551.2,0.21118013]
[1725316948549,6.58722737,2551.6,2551.2,0.21118013]
[1725316949350,1.38412371,2551.5,2551.2,0.21118013]
[1725316950244,4.51954371,2551.5,2551.2,0.21118013]
[1725316950441,5.63021582,2551.5,2551.2,0.21118013]
[1725316950859,3.13554,2551.4,2551.2,0.21118013]
[1725316951062,3.13554,2551.4,2550.9,5.57586]
[1725316951286,3.13554,2551.4,2551.0,0.21103018]
[1725316951824,3.13578,2551.2,2551.0,0.21103018]
[1725316951976,4.97201408,2551.1,2551.0,0.21103018]
[1725316952468,2.2948,2551.4,2551.0,0.21103018]
[1725316952469,1.38412371,2551.3,2551.0,0.21103018]
[1725316952669,3.13566,2551.3,2550.8,3.13624]
[1725316952873,3.13566,2551.3,2550.9,0.21114792]
[1725316953689,4.51978371,2551.3,2550.9,0.21114792]
[1725316953976,4.51978371,2551.3,2550.7,7.28]
[1725316953977,3.90131837,2551.2,2550.7,7.28]
[1725316954179,3.90131837,2551.2,2551.0,0.21103018]
[1725316954378,3.90131837,2551.2,2550.7,10.41636]
[1725316954703,0.52854421,2551.1,2550.7,10.41636]
[1725316954904,7.03720837,2551.2,2550.7,10.41636]
[1725316955697,3.90131837,2551.2,2550.7,10.41636]
[1725316956114,7.03717837,2551.2,2550.7,10.41636]
[1725316957411,3.1359,2551.1,2550.7,7.28]
[1725316957606,3.97803421,2551.1,2550.7,7.28]
[1725316958822,5.36215792,2551.1,2550.6,2.4398]
[1725316959025,8.49817792,2551.1,2550.6,2.4398]
[1725316959225,3.13603,2551.0,2550.6,2.4398]
[1725316960012,3.13556,2551.4,2550.9,3.13608]
[1725316960334,1.11067211,2551.5,2551.0,2.2812]
[1725316960486,4.24614211,2551.5,2551.0,2.2812]
[1725316960687,3.13526,2551.7,2551.1,0.07839477]
[1725316960927,3.13495,2551.9,2551.3,3.13553]
[1725316961221,2.3609,2552.2,2551.3,3.21391191]
[1725316961222,3.13506,2551.8,2551.3,3.21391191]
[1725316961524,3.13506,2551.8,2551.4,0.2074735]
[1725316962232,2.3609,2551.7,2551.4,0.2074735]
[1725316962540,13.15125371,2551.5,2551.4,0.2074735]
[1725316962731,13.72138253,2551.5,2551.4,0.2074735]
[1725316962894,3.13602,2551.1,2550.5,2.2812]
[1725316963232,0.50819752,2551.0,2550.6,0.19393289]
[1725316963730,3.64424752,2551.0,2550.5,2.2812]
[1725316963882,6.78035752,2551.0,2550.7,0.19381512]
[1725316964089,6.78036752,2551.0,2550.5,2.2812]
[1725316964329,3.64424752,2551.0,2550.6,0.19393289]
[1725316964546,0.50283712,2550.9,2550.6,0.19393289]
[1725316964688,3.13639,2550.7,2550.6,0.19393289]
[1725316964888,0.50283712,2550.9,2550.6,0.19393289]
[1725316965100,3.13623,2550.9,2550.6,0.19393289]
[1725316966092,3.13605,2551.0,2550.6,0.19393289]
[1725316966375,3.13592,2551.1,2550.6,0.19393289]
[1725316966553,3.0,2551.0,2550.6,0.19393289]
[1725316967233,3.13592,2551.1,2550.6,0.19393289]
[1725316967430,3.13583,2551.2,2550.6,3.33044289]
[1725316968346,3.13583,2551.2,2550.6,7.34963201]
[1725316968529,3.13583,2551.2,2550.6,7.42803579]
[1725316968724,3.13583,2551.2,2550.6,4.21312201]
[1725316968938,3.13583,2551.2,2550.7,3.13638]
[1725316969270,3.13583,2551.2,2550.7,3.32393773]
[1725316969970,3.13583,2551.2,2550.8,2.4359]
[1725316970271,3.13583,2551.2,2550.8,2.62333997]
[1725316970868,3.13568,2551.3,2550.8,5.75958997]
[1725316971370,6.13556,2551.4,2550.8,5.75958997]
[1725316971545,10.117076,2551.4,2550.8,5.75958997]
[1725316971954,3.13567,2551.3,2550.8,5.75958997]
[1725316973580,3.13585,2551.2,2550.8,2.62333997]
[1725316974968,3.13593,2551.1,2550.8,2.62333997]
[1725316975283,6.27193,2551.1,2550.8,0.18743997]
[1725316975782,3.13593,2551.1,2550.9,0.18724971]